Cogmind - Beta 13 @@@ ROGUE MODE // 2024.07.10 @ 02:23:51 Player: Duduxx Result: Destroyed by G-34 Mercenary with Small Laser Performance ------------- Evolutions (0) 0 Regions Visited (1) 200 Robots Destroyed (15) 75 Value Destroyed (396) 396 Prototype IDs (0) 0 Alien Tech Used (0) 0 Bonus (0) 0 TOTAL SCORE: 671 Bonus ------- None Cogmind --------- Core Integrity 0/250 Matter 280/300 Energy 82/100 System Corruption 0% Temperature Cool (99) Movement Core (750) Ox14 Location -10/Materials Parts ------- > --- POWER (1) -------- (None) > --- PROPULSION (2) --- (None) > --- UTILITY (2) ------ High-capacity Storage Unit Targeting Computer > --- WEAPON (2) ------- Small Laser Assault Rifle > --- INVENTORY (20) --- Light Ion Engine Light Treads Medium Storage Unit Authchip [R/Combat] Authchip [R/Combat] Authchip [R/Combat] Authchip [Power] Authchip [Device] Peak State ------------ > --- POWER ------------ Light Ion Engine > --- PROPULSION ------- Light Treads Light Treads > --- UTILITY ---------- High-capacity Storage Unit Targeting Computer > --- WEAPON ----------- Assault Rifle Assault Rifle > --- INVENTORY -------- Light Ion Engine Aluminum Leg Aluminum Leg Medium Storage Unit Authchip [R/Combat] Authchip [R/Combat] Authchip [Power] Authchip [Device] Assault Rifle [Rating: 9] Favorites ----------- Power Light Ion Engine Engine Light Ion Engine Propulsion Light Treads Treads Light Treads Utility Targeting Computer Storage High-capacity Storage Unit Processor Targeting Computer Weapon Assault Rifle Energy Gun Small Laser Ballistic Gun Assault Rifle Build | -11 -10 ------- Run | Yrd Mat Slots Evolved . | . . Power . | . . Propulsion . | . . Utility . | . . Weapon . | . . Parts Attached 12 | 6 6 Power 1 | 1 . Engine 1 | 1 . Core . | . . Reactor . | . . Propulsion 2 | 2 . Treads 2 | 2 . Leg . | . . Wheel . | . . Hover . | . . Flight . | . . Utility 4 | 1 3 Device . | . . Storage 3 | 1 2 Processor 1 | . 1 Hackware . | . . Protection . | . . Artifact . | . . Weapon 5 | 2 3 Energy Gun 2 | . 2 Energy Cannon . | . . Ballistic Gun 3 | 2 1 Ballistic Cannon . | . . Launcher . | . . Special Weapon . | . . Impact Weapon . | . . Slashing Weapon . | . . Piercing Weapon . | . . Special Melee Weapon . | . . Unidentified Prototypes . | . . Parts Lost 5 | . 5 Power 1 | . 1 Propulsion 2 | . 2 Utility . | . . Weapon 2 | . 2 Highest Loss Streak 4 | . 4 To Critical Strikes . | . . Average Slot Usage (%) 97 | . 97 Engine 14 | . 14 Treads 27 | . 27 Storage 14 | . 14 Processor 12 | . 12 Energy Gun 7 | . 7 Ballistic Gun 19 | . 19 Naked Turns . | . . Heaviest Build 47 | 12 47 Greatest Support 40 | 40 40 Greatest Overweight (x) 1 | . 1 Average Overweight (x) . | . . Largest Inventory Capacity 20 | 8 20 Average Capacity 14 | 7 17 Most Carried 10 | 4 10 Average Carried 6 | 3 7 Final Capacity 20 | 8 20 Final Carried 8 | 4 8 Class Distribution -------------------- 100% | Mutant Dominant Class ---------------- Mutant | -10/Materials Resources | -11 -10 ----------- Run | Yrd Mat Matter Collected 464 | 217 247 Remotely . | . . Salvage Created 483 | . 483 Parts 35 | . 35 Haulers Intercepted 1 | . 1 Recyclers Shooed . | . . Parts Field Recycled . | . . Retrieved Matter . | . . Parts Self-Destructed . | . . Prevented . | . . Kills | -11 -10 ------- Run | Yrd Mat Combat Hostiles Destroyed 12 | . 12 Guns 12 | . 12 Classes Destroyed 4 | . 4 Hauler 1 | . 1 Watcher 2 | . 2 Swarmer 3 | . 3 Grunt 9 | . 9 Best Kill Streak 4 | . 4 Combat Bots Only 3 | . 3 Max Kills in Single Turn 1 | . 1 Gunslinging . | . . Exploded . | . . Melee . | . . Uniques/NPCs Destroyed . | . . Combat | -11 -10 -------- Run | Yrd Mat Hostile Shots Fired 96 | . 96 Missed 24 | . 24 Damage Taken 832 | . 832 Core 251 | . 251 Absorbed by Shields . | . . Core Remaining (%) 100 | 100 . Volleys Fired 45 | . 45 Largest 2 | . 2 Hottest 60 | . 60 Shots Fired 86 | . 86 Gun 86 | . 86 Cannon . | . . Launcher . | . . Special . | . . Kinetic 68 | . 68 Thermal 18 | . 18 Explosive . | . . Electromagnetic . | . . Robot Hit Streak 16 | . 16 Robot Miss Streak 3 | . 3 Penetration Max . | . . Secondary Targets 4 | . 4 Max Gunslinging Chain 1 | . 1 Shots Hit Robots 61 | . 61 Core Hits 30 | . 30 Critical Kills . | . . Critical Parts Destroyed . | . . Critical Strikes . | . . Melee Attacks . | . . Impact . | . . Slashing . | . . Piercing . | . . Sneak Attacks . | . . Combat Hostiles . | . . Follow-up Attacks . | . . Damage Inflicted 765 | . 765 Guns 754 | . 754 Cannons . | . . Explosions . | . . Melee . | . . Ramming 11 | . 11 Kinetic 622 | . 622 Thermal 132 | . 132 Explosive . | . . Electromagnetic . | . . Impact . | . . Slashing . | . . Piercing . | . . Highest Corruption . | . . Average Corruption . | . . Corruption Purged . | . . Corruption Blocked . | . . Overload Shots . | . . Overflow Damage . | . . Projectiles . | . . Explosions . | . . Melee . | . . Knockbacks . | . . Impact . | . . Kinetic . | . . Secondary . | . . Self-Inflicted Damage . | . . Shots . | . . Rammed 5 | . 5 Targets Rammed 5 | . 5 Kicked . | . . Crushed . | . . Highest Temperature 109 | . 109 Average Temperature 39 | . 39 Received Heat Transfer 426 | . 426 Siege Activations . | . . Robots Corrupted . | . . Combat Hostiles . | . . Parts Fried . | . . Impact Corruptions . | . . Robots Melted . | . . Combat Hostiles . | . . Parts Melted 1 | . 1 Heat Transferred 300 | . 300 Parts Sabotaged . | . . Parts Stolen . | . . Parts Stripped . | . . Power Chain Reactions . | . . Alert | -11 -10 ------- Run | Yrd Mat Peak Influence 212 | . 212 Initial . | . . Average 53 | . 82 Maximum Alert Level 1 | . 1 Low Security (%) 93 | 100 89 Level 1 6 | . 10 Level 2 . | . . Level 3 . | . . Level 4 . | . . Level 5 . | . . High Security . | . . Max Security . | . . Squads Dispatched 2 | . 2 Investigation 1 | . 1 Extermination . | . . Reinforcement 1 | . 1 Assault . | . . Garrison . | . . Intercept . | . . Searches Triggered . | . . Construction Impeded . | . . Haulers Reinforced . | . . Active Scanning Responses . | . . Cargo Convoy Interrupts . | . . Stealth | -11 -10 --------- Run | Yrd Mat Distress Signals 1 | . 1 Communications Jammed . | . . Distress Signals . | . . Times Spotted 19 | . 19 Peak Tracking Total 5 | . 5 Tactical Retreats . | . . Traps | -11 -10 ------- Run | Yrd Mat Traps Triggered 1 | . 1 Indirectly . | . . Trap Hack Attempts . | . . Triggered . | . . Disarmed . | . . Reprogrammed . | . . Reused . | . . Traps Extracted . | . . Installed . | . . Triggered . | . . Machines | -11 -10 ---------- Run | Yrd Mat Machines Disabled . | . . Max in Single Turn . | . . Machines Repaired . | . . Machines Dismantled . | . . Machines Sabotaged . | . . Overloaded Fab Kills . | . . Hacking | -11 -10 --------- Run | Yrd Mat Machines Accessed 1 | . 1 Terminals . | . . Fabricators . | . . Repair Stations . | . . Recycling Units 1 | . 1 Scanalyzers . | . . Garrison Access . | . . Total Hacks 2 | . 2 Successful 2 | . 2 Failed . | . . Catastrophic . | . . Database Lockouts . | . . Manual . | . . Terminals . | . . Fabricators . | . . Repair Stations . | . . Recycling Units 2 | . 2 Scanalyzers . | . . Garrison Access . | . . Terminal Hacks . | . . Fabricator Hacks . | . . Repair Station Hacks . | . . Recycling Unit Hacks 2 | . 2 Report Inventory 2 | . 2 Scanalyzer . | . . Garrison Access Hacks . | . . Unauthorized Hacks . | . . Terminals . | . . Fabricators . | . . Repair Stations . | . . Recycling Units . | . . Scanalyzers . | . . Garrison Access . | . . Data Cores Recovered . | . . Used . | . . Hacking Detections 1 | . 1 Full Trace Events . | . . Feedback Events . | . . Feedback Blocked . | . . Robot Schematics Acquired . | . . Robots Built . | . . Authchips . | . . Time . | . . Total Robot Build Rating . | . . Part Schematics Acquired . | . . Parts Built . | . . Authchips . | . . Time . | . . Total Part Build Rating . | . . Parts Repaired . | . . Time . | . . Parts Recycled . | . . Recycled Matter . | . . Retrieved Matter . | . . Retrieved Components . | . . Parts Scanalyzed . | . . Part Schematics Acquired . | . . Parts Damaged . | . . Bothacking | -11 -10 ------------ Run | Yrd Mat Used RIF Installer . | . . Robots Hacked . | . . Non-combat . | . . Combat . | . . Robot Hacks Applied . | . . Relay Couplers Released . | . . Fabnet Peak Effective % . | . . Robots Rewired . | . . Allies Hacked . | . . Hacks Repelled . | . . Allies | -11 -10 -------- Run | Yrd Mat Total Allies . | . . Largest Group . | . . Highest-Rated Group . | . . Highest-Rated Ally . | . . Total Orders . | . . Ally Attacks . | . . Total Damage . | . . Kills . | . . Allies Corrupted . | . . Allies Melted . | . . Intel | -11 -10 ------- Run | Yrd Mat Robot Analysis Total . | . . Derelict Logs Recovered . | . . Drone Launches . | . . Drone Recoveries . | . . Exploration | -11 -10 ------------- Run | Yrd Mat Turns Passed 1204 | 425 779 Spaces Moved 348 | 58 290 Core 4 | 4 . Treads 344 | 54 290 Legs . | . . Wheels . | . . Hover . | . . Flight . | . . Fastest Speed 50 | 50 160 Average Speed 204 | 152 214 Slowest Speed 240 | 160 240 Overloaded Moves . | . . Propulsion Burnouts . | . . Robots Hopped . | . . Cave-ins Triggered . | . . Exploration Rate (%) 32 | 8 56 Regions Visited 1 Branch Regions . Pre-discovered Areas . | . . Known Exits Taken . | . . Unknown Exits Taken 1 | 1 . Scrap Searched . | . . Spaces Dug . | . . Terrain Destroyed . | . . Melee . | . . Projectile . | . . AOE . | . . Terrain Rammed . | . . Walls Destroyed . | . . Machines Disabled . | . . Actions | -11 -10 --------- Run | Yrd Mat Total 749 | 392 357 Wait 324 | 324 . Move 347 | 57 290 Hop . | . . Pick Up 11 | 5 6 Fast Attach 8 | 5 3 Attach 2 | 1 1 Detach 1 | . 1 Swap 2 | . 2 Drop 4 | . 4 Fire 45 | . 45 Melee . | . . Ram . | . . Kick . | . . Crush 5 | . 5 Escape Stasis . | . . Rewire . | . . Trap . | . . Miscellaneous . | . . Route ------- -11/Scrapyard -10/Materials (discovered 2 exits: [*Mat] / [*Min]) History --------- Turn | Location | Event 6 | -11/Scrapyard | Discovered new exit (range 15) 426 | -11/Scrapyard | Entered Materials 427 | -10/Materials | Build established: Mutant 657 | -10/Materials | Discovered new exit (range 8) 744 | -10/Materials | Core integrity fell below 50% 1168 | -10/Materials | Discovered new exit (range 12) 1199 | -10/Materials | Core integrity fell below 20% 1205 | -10/Materials | Destroyed by G-34 Mercenary with Small Laser Last Messages --------------- 01170_ Triggered Alarm Trap. 01170_ An alarm sounds. 01170_ ALERT: Alarm triggered, dispatching investigation squad. 01175_ G-34 Mercenary destroyed. 01177_ K-01 Serf collects debris. 01178_ G-34 Mercenary destroyed. 01181_ K-01 Serf collects debris. 01187_ Heat Sink melted. 01187_ G-34 Mercenary destroyed. 01188_ K-01 Serf collects debris. 01194_ U-05 Engineer lays Concrete. 01195_ K-01 Serf collects debris. 01195_ U-05 Engineer lays Concrete. 01196_ Destroyed Sml. Matter Pod. 01196_ U-05 Engineer lays Concrete. 01197_ Assault Rifle destroyed. 01199_ Lgt. Treads destroyed. 01200_ Lgt. Ion Engine destroyed. 01201_ Lgt. Treads destroyed. Map ----- +----------------------------------------------------+ | ??????????????????????????????????????????? | | ??????????????????????????????????????????? | | ??????????????????????????????????????????? | | ??????????????????????????????????????????? | | ??????????????????????????????????????????? | | ??????????????????????????????????????????? | | ??????????????????????????????????????????? | | ??????????????????????????????????????????? | | ??????????????????????????????????????????? | | ??????????????????????????????????????????? | | ??????????????????????????????????????????? | | ??????????????????????????????????????????? | | ??????????????????????????????????????????? | | ??????????????????????????????????????????? | | ??????????????????????????????????????????? | | ????????????????????????????????##????????? | | ??????????????????????????????? #????????? | | ???????????????????????????????< #????????? | | ?????????????????????????????? #????????? | | ????????????????????????###### ?????????? | | ???????????????????????? ??????????? | | ##?????????????????????? ???????????? | | #?????????????????????? !g ????????????? | | #??????????????????????#%g #?????????????? | | #??????????????????????#! #?????????????? | | #??????????????????????#@ #?????????????? | | #??????????????????????# #?????????????? | | #??????????????????????#% #?????????????? | | #????????####??????????# #?????????????? | | #???????## ###????????# #?????????????? | | #???????# #????????# #?????????????? | | #???????# #????????# #?######??????? | | ######### ??????????# #? ??????? | | ## ## #############u # """ ?????? | | # + # """ ????? | | < # ### + """ ????? | | % % # """ #?# # """ ????? | | ## ## # """ #?# # !!!?????? | | # "! !" ## # """ #?# #? !!! ????? | | #""!"!""## # """ #?# #? !!! ????? | | ########## + #?# ##########????? | | # # # [ #?# ## #???? | | # """ # # ### ## """ #???? | | # """ # ##+####### # """ #???? | | # """ + # """ #???? | | # # + #???? | | # """ # # """ #???? | | !# """ # ##+#######/ # """ #???? | | # """ # # ######## """ #???? | | ## # #% !!! #??????# #???? | +----------------------------------------------------+ Best States ------------- Heat Dissipation 25 Energy Generation 10 Energy Capacity 125 Matter Stores 300 Matter Capacity 300 Sight Range 16 Terrain Scan Density 10 Evasion (%) 40 Targeting Accuracy 5 Recoil Reduction 2 Authchip Count 5 Item Schematics ----------------- None Robot Schematics ------------------ None Fabricated ------------ Nothing Alien Tech Used ----------------- None Achievements -------------- None Challenges ------------ None Game ------ Seed FactoryLaserArmor Manual? 0 Play Time 00:06:24 Cumulative 35.3 hours Start 2024.07.10 @ 02:20:20 End 2024.07.10 @ 02:23:51 Sessions 1 Manual Loads 0 Difficulty Rogue Special Mode None Game No. 83 Rogue 83 Adventurer 0 Explorer 0 Win Type - Total 0 Types 0/0/0/0/0/0/0/0/0 Lore% 24 Gallery% 31 Achievement% 23 Wizard Run 0 Options --------- Layout 1 ASCII 0 Keyboard 1 Movement Arrows Keybinds 0 Fullscreen 1 Font 24/Smallcaps Map View 50x35 Zoom Use 0% Tactical HUD 1 Map Filters NONE Filters NONE Steam 1 RUN: a417c04d-4487-4316-93a8-234f4506ab68